{"text_format":"1","workbook":"xlsx","n_sheets":13,"sheets":["1. Forside","2. Samlet prisloft","3. Driftsomkostninger","4. Historiske investeringer","5. Gennemførte investeringer","6. Korrektion investeringer","7. Planlagte investeringer","8. 1-1 omkostninger","9. Miljø- og servicemål","10. Klimatilpasning","11. Nettofinansielle poster","12. Over- eller underdækning","13. Kontrol med indtægtsrammen"],"not_rendered":{"charts":0,"images":0,"macros":1,"external_links":0,"defined_names":0,"comments":0,"pivot_tables":0},"unopened":[],"bounds":{"document_bytes":16777216,"sheet_cells":100000,"rows_first":2000,"rows_last":500,"rows_between":2000,"halvings":0,"cell_chars":16384,"cell_head_chars":4096},"cells_cut":0,"cells_raw":0,"read":"whole","date_system":"1900"}

{"sheet":"1. Forside","index":0,"n_rows":27,"n_cols":4,"rows_kept":27,"cut":false,"hidden":false,"merged":[[26,3,26,5],[25,3,25,5],[24,3,24,5],[23,3,23,5],[22,3,22,5],[21,3,21,5],[20,3,20,5],[19,3,19,5],[18,3,18,5],[7,3,7,5],[12,3,12,5],[15,3,15,5],[16,3,16,5],[17,3,17,5]]}
["Assens Spildevand A/S"]
[]
[]
[]
[]
[]
[]
[null,null,null,"Bilag A"]
[]
[]
[]
[]
[null,null,null,"Indholdsfortegnelse"]
[]
[]
[null,null,"Fane nr. 2","Samlet prisloft "]
[null,null,"Fane nr. 3","Driftsomkostninger"]
[null,null,"Fane nr. 4","Historiske investeringer "]
[null,null,"Fane nr. 5","Gennemførte investeringer"]
[null,null,"Fane nr. 6","Korrektion investeringer"]
[null,null,"Fane nr. 7","Planlagte investeringer"]
[null,null,"Fane nr. 8","1:1 omkostninger"]
[null,null,"Fane nr. 9","Miljø- og servicemål"]
[null,null,"Fane nr. 10","Klimatilpasning"]
[null,null,"Fane nr. 11","Nettofinansielle poster"]
[null,null,"Fane nr. 12","Over- eller underdækning"]
[null,null,"Fane nr. 13","Kontrol med indtægtsrammen og oversigt over ekstraordinære effektiviseringsgevinster"]

{"sheet":"2. Samlet prisloft","index":1,"n_rows":38,"n_cols":6,"rows_kept":38,"cut":false,"hidden":false,"merged":[[3,1,3,5]]}
[{"$f":"'1. Forside'!A1","v":"Assens Spildevand A/S"}]
[]
[]
[null,"Fane 2. Samlet prisloft for 2015"]
[]
[null,"Driftsomkostninger"]
[null,"Driftsomkostninger i prisloftet for 2014",{"$f":"'3. Driftsomkostninger'!C20","v":12925712.380000001},"kr."]
[null,"Bortfald af væsentlige omkostninger",{"$f":"-'3. Driftsomkostninger'!C16","v":0},"kr."]
[null,"Korrektion for prisudviklingen 2014-2015",{"$f":"'3. Driftsomkostninger'!C22","v":10340.569904000002},"kr."]
[null,"Forhøjelse til effektivt niveau iht. benchmarkingen",{"$f":"'3. Driftsomkostninger'!C28","v":0},"kr."]
[null,"Korrektion for generelt effektiviseringskrav",{"$f":"-'3. Driftsomkostninger'!C34","v":-56873.134472000005},"kr."]
[null,"Korrektion for individuelt effektiviseringskrav",{"$f":"-'3. Driftsomkostninger'!C43","v":0},"kr."]
[null,"Driftsomkostninger i alt",{"$f":"SUM(C7:C12)","v":12879179.815432001},"kr.",{"$f":"C13","v":12879179.815432001}," kr."]
[null,"Investeringer"]
[null,"Tillæg for historiske investeringer",{"$f":"'4. Historiske investeringer'!C9","v":42954935.504708916},"kr."]
[null,"Tillæg for gennemførte investeringer i 2011-2013",{"$f":"'5. Gennemførte investeringer'!F46","v":4414936.3302900605},"kr."]
[null,"Korrektion af tillæg for planlagte investeringer vedrørende 2013  ",{"$f":"'6. Korrektion investeringer'!C10","v":1193386.3207692304},"kr."]
[null,"Tillæg for planlagte investeringer i 2014 og 2015",{"$f":"'7. Planlagte investeringer'!F28","v":2619906.666666667},"kr."]
[null,"Investeringstillæg i alt",{"$f":"SUM(C15:C18)","v":51183164.822434872},"kr.",{"$f":"C19","v":51183164.822434872}," kr."]
[null,"Øvrige omkostninger mv."]
[null,"Tillæg for 1:1 omkostninger i 2015",{"$f":"'8. 1-1 omkostninger'!C9","v":21879000},"kr."]
[null,"Tillæg vedr. revisorerklæringer og DANVA/FVD-kontingent",{"$f":"'8. 1-1 omkostninger'!C17","v":66200},"kr."]
[null,"Korrektion ift. faktiske 1:1 omkostninger i 2013",{"$f":"'8. 1-1 omkostninger'!C23","v":-3212668},"kr."]
[null,"Tillæg for driftsomkostninger til miljø- og servicemål i 2015",{"$f":"'9. Miljø- og servicemål'!C11","v":3283140},"kr."]
[null,"Korrektion ift. faktiske driftsomkostninger til miljø- og servicemål i 2013",{"$f":"'9. Miljø- og servicemål'!C18","v":368924},"kr."]
[null,"Tillæg for driftsomkostninger til medfinansiering af klimatilpasningsprojekter i 2015",{"$f":"'10. Klimatilpasning'!C9","v":0},"kr."]
[null,"Korrektion ift. faktiske omkostninger til medfinansiering af klimatilpasningsprojekter i 2013",{"$f":"'10. Klimatilpasning'!C16","v":0},"kr."]
[null,"Tillæg/fradrag for nettofinansielle poster i 2015",{"$f":"'11. Nettofinansielle poster'!C9","v":1316000},"kr."]
[null,"Korrektion ift. faktiske nettofinansielle poster i 2013",{"$f":"'11. Nettofinansielle poster'!C16","v":-334018},"kr."]
[null,"Øvrige omkostninger mv. i alt",{"$f":"SUM(C21:C29)","v":23366578},"kr.",{"$f":"C30","v":23366578}," kr."]
[null,"Historisk over- eller underdækning"]
[null,"Tillæg/fradrag for over- eller underdækning til og med 2010",{"$f":"'12. Over- eller underdækning'!C11","v":0},"kr.",{"$f":"C32","v":0}," kr."]
[null,"Korrektion i forhold til tidligere indtægtsramme "]
[null,"Korrektion for overholdelse af indtægtsramme i prisloft 2013",{"$f":"'13. Kontrol med indtægtsrammen'!E27","v":6654408.3969999999},"kr.",{"$f":"C34","v":6654408.3969999999}," kr."]
[null,"Samlet prisloft"]
[null,"Indtægtsramme i 2015 ",null,null,{"$f":"SUM(E13:E34)","v":94083331.034866869}," kr."]
[null,"Debiteret vandmængde i 2013",null,null,1682064," m3"]
[null,"Prisloft 2015",null,null,{"$f":"E36/E37","v":55.933264747873366}," kr./m3"]

{"sheet":"3. Driftsomkostninger","index":2,"n_rows":43,"n_cols":4,"rows_kept":43,"cut":false,"hidden":false,"merged":[[3,1,3,3]]}
[{"$f":"'1. Forside'!A1","v":"Assens Spildevand A/S"}]
[]
[]
[null,"Fane 3. Driftsomkostninger "]
[]
[null,"Driftsomkostningerne i prisloftet for 2014"]
[null,"Korrigerede driftsomkostninger i prisloftet for 2013 (DOiPL 2013)",12734692,"kr."]
[null,"Prisfremskrivning 1,5 pct.",{"$f":"0.015*SUM(C7:C7)","v":191020.38},"kr."]
[null,"Generelt effektiviseringskrav (0 pct.)",0,"kr."]
[null,"Individuelt effektiviseringskrav ",0,"kr."]
[null,"Driftsomkostningerne i prisloftet for 2014 (DOiPL 2014)",{"$f":"SUM(C7:C10)","v":12925712.380000001},"kr."]
[]
[]
[null,"Korrektion for forventet bortfald af væsentlige omkostninger"]
[null,"Selskabets indberettede bortfald af væsentlige omkostninger inden 2015",0,"kr."]
[null,"Korrektion for forventet bortfald ",{"$f":"SUM(C15:C15)","v":0},"kr."]
[]
[]
[null,"Korrektion for prisudviklingen fra 2014-2015"]
[null,"Driftsomkostningerne i prisloftet for 2014",{"$f":"C11-C16","v":12925712.380000001},"kr."]
[null,"Prisudvikling 2014 - 2015 ",0.08,"pct."]
[null,"Korrektion for prisudvikling",{"$f":"C20*(C21/100)","v":10340.569904000002},"kr."]
[]
[]
[null,"Eventuel forhøjelse til effektivt niveau iht. benchmarkingen"]
[null,"Selskabets effektive driftsomkostninger iht. benchmarkingen",11775324,"kr."]
[null,"Selskabets pristalskorrigerede driftsomkostninger i 2015-niveau",{"$f":"C20+C22","v":12936052.949904},"kr."]
[null,"Eventuel forhøjelse til effektivt niveau",{"$f":"IF(C27>C26,0,C26-C27)","v":0},"kr."]
[]
[]
[null,"Korrektion for generelt effektiviseringskrav"]
[null,"Driftsomkostningerne i prisloftet for 2014",{"$f":"C20","v":12925712.380000001},"kr. "]
[null,"Generelt effektiviseringskrav ",0.44,"pct."]
[null,"Endeligt generelt effektiviseringskrav",{"$f":"C32*(C33/100)","v":56873.134472000005},"kr. "]
[]
[]
[null,"Korrektion for individuelt effektiviseringskrav"]
[null,"Rå effektiviseringspotentiale",1150388,"kr."]
[null,"Effektiviseringspotentiale efter eventuel korrektion for særlige forhold",1150388,"kr."]
[null,"Effektiviseringspotentiale efter forsigtighedshensyn",0,"kr."]
[null,"Effektiviseringspotentiale efter eventuel korrektion for sammensætning af signifikante costdrivere",0,"kr. "]
[null,"Umiddelbart effektiviseringskrav",{"$f":"C41/4","v":0},"kr."]
[null,"Endeligt individuelt effektiviseringskrav",{"$f":"IF(C42>0.05*C20,0.05*C20,IF(C42<0.01*C20,0,C42))","v":0},"kr. "]

{"sheet":"4. Historiske investeringer","index":3,"n_rows":9,"n_cols":4,"rows_kept":9,"cut":false,"hidden":false,"merged":[[3,1,3,2]]}
[{"$f":"'3. Driftsomkostninger'!A1","v":"Assens Spildevand A/S"}]
[]
[]
[null,"Fane 4. Historiske investeringer "]
[]
[null,"Tillæg for historiske investeringer "]
[null,"Værdi af selskabets materielle anlægsaktiver pr. 1. januar 2010",2016119547.1110556,"kr."]
[null,"Den årlige standardafskrivning på de materielle anlægsaktiver iht. POLKA",42954935.504708916,"kr."]
[null,"Tillæg i alt i 2015",{"$f":"C8","v":42954935.504708916},"kr."]

{"sheet":"5. Gennemførte investeringer","index":4,"n_rows":46,"n_cols":7,"rows_kept":46,"cut":false,"hidden":false,"merged":[[3,1,3,5],[6,5,6,6]]}
[{"$f":"'4. Historiske investeringer'!A1","v":"Assens Spildevand A/S"}]
[]
[]
[null,"Fane 5. Gennemførte investeringer i 2010 - 2013 "]
[]
[null,"Tillæg for gennemførte investeringer i 2013"]
[null," Beskrivelse af investeringen   ","Årstal ","Std. levetid (år)   "," Anskaffelses-pris (kr.)","Afskrivning "]
[null,"Brønde",2013,75,9824621,{"$f":"E8/D8","v":130994.94666666667},"kr."]
[null,"Forsinkelsesbassiner, lukkede med automatisk rensning og SRO Miljøklasse A (1.000-3.000 m3) - Konstruktioner",2013,75,6608985,{"$f":"E9/D9","v":88119.8},"kr."]
[null,"Forsinkelsesbassiner, lukkede med automatisk rensning og SRO Miljøklasse A (1.000-3.000 m3) - Mek/EL",2013,20,565475,28273.75,"kr."]
[null,"Forsinkelsesbassiner, lukkede med automatisk rensning og SRO Miljøklasse A (1.000-3.000 m3) - SRO",2013,10,494790,49479,"kr."]
[null,"Jordbassin Klasse A",2013,50,1078680,21573.599999999999,"kr."]
[null,"Jordbassin Klasse B",2013,50,177917,3558.34,"kr."]
[null,"Ledningsnet = Ø 200 mm",2013,75,15651175,208682.33333333334,"kr."]
[null,"Pumpestationer i brønde (< 6,25 m2), Konstruktioner",2013,50,1856304,37126.080000000002,"kr."]
[null,"Pumpestationer i brønde (< 6,25 m2), Mek/EL",2013,20,642862,32143.1,"kr."]
[null,"Pumpestationer i brønde (< 6,25 m2), SRO",2013,10,2130351,213035.1,"kr."]
[null,"Pumpestationer i underjordiske bygværker (",2013,20,589036,29451.8,"kr."]
[null,"Pumpestationer i underjordiske bygværker (",2013,10,147259,14725.9,"kr."]
[null,"Pumpestationer m. overbygning (< 20 m2), SRO",2013,10,175041,17504.099999999999,"kr."]
[null,"Strømpeforing = Ø 200 mm",2013,50,3001708,60034.16,"kr."]
[null,"Strømpeforing Ø 200 mm < Ledningsnet = Ø 500 mm",2013,50,1349409,26988.18,"kr."]
[null,"Strømpeforing Ø 500 mm < Ledningsnet = Ø 800 mm",2013,50,143865,2877.3,"kr."]
[null,"Tryksatte minipumpestationer (husstandssystemer)",2013,30,1436222,47874.066666666666,"kr."]
[null,"Ø 1200 mm < Ledningsnet = Ø 1600 mm",2013,75,2206691,29422.546666666665,"kr."]
[null,"Ø 200 mm < Ledningsnet = Ø 500 mm",2013,75,6422734,85636.453333333338,"kr."]
[null,"Ø 500 mm < Ledningsnet = Ø 800 mm",2013,75,5042972,67239.626666666663,"kr."]
[null,"Ø 800 mm < Ledningsnet = Ø 1000 mm",2013,75,1771194,23615.919999999998,"kr."]
[null,"Brønde",2013,40,251171,6279.2749999999996,"kr."]
[null,"Jordbassin Klasse B",2013,50,574061,11481.22,"kr."]
[null,"Brønde",2013,40,22834,570.85,"kr."]
[null,"Jordbassin Klasse B",2013,50,243980,4879.6000000000004,"kr."]
[null,"Brønde",2013,40,7611,190.27500000000001,"kr."]
[null,"Jordbassin Klasse B",2013,50,337223,{"$f":"E34/D34","v":6744.46},"kr."]
[null,"Brønde",2013,40,68501,1712.5250000000001,"kr."]
[null,"Brønde",2013,40,7611,190.27500000000001,"kr."]
[null,"Pumpestationer i brønde (< 6,25 m2), Konstruktioner",2013,10,95986,9598.6,"kr."]
[null,"Brønde",2013,40,15223,380.57499999999999,"kr."]
[null,"Jordbassin Klasse B",2013,50,314091,6281.82,"kr."]
[null,"Tryksatte minipumpestationer (husstandssystemer)",2013,10,35773,3577.3,"kr."]
[null,"Køretøjer, personbil",2013,5,145527,29105.4,"kr."]
[null,"Arbejdsplads",2013,5,1057028,211405.6,"kr."]
[null,"Mindre renseanlæg < 5.000 PE uden mulighed for opdeling",2013,39,58745,1506.2820512820513,"kr."]
[null,"Tillæg for 2013 ",null,null,null,{"$f":"SUM(F8:F43)","v":1512260.1603846152},"kr."]
[null,"Tillæg for 2010 - 2012",null,null,null,2902676.1699054451,"kr."]
[null,"Samlet tillæg for gennemførte investeringer",null,null,null,{"$f":"F44+F45","v":4414936.3302900605},"kr."]

{"sheet":"6. Korrektion investeringer","index":5,"n_rows":10,"n_cols":4,"rows_kept":10,"cut":false,"hidden":false,"merged":[[3,1,3,3]]}
[{"$f":"'5. Gennemførte investeringer'!A1","v":"Assens Spildevand A/S"}]
[]
[]
[null,"Fane 6. Korrektion af tillæg for planlagte investeringer"]
[]
[null,"Korrektion af tillæg for planlagte investeringer vedr. 2013"]
[null,"Tillæg for planlagte investeringer i 2013 i prisloft 2013",970967,"kr."]
[null,"Tillæg for planlagte investeringer i 2013 i prisloft 2014",860167,"kr."]
[null,"Selskabets faktiske afskrivninger på gennemførte investeringer i 2013",{"$f":"'5. Gennemførte investeringer'!F44","v":1512260.1603846152},"kr."]
[null,"Korrektion af tillæg for planlagte investeringer vedr. 2013",{"$f":"C9-C7+C9-C8","v":1193386.3207692304},"kr."]

{"sheet":"7. Planlagte investeringer","index":6,"n_rows":28,"n_cols":7,"rows_kept":28,"cut":false,"hidden":false,"merged":[[6,5,6,6],[3,1,3,6]]}
[{"$f":"'6. Korrektion investeringer'!A1","v":"Assens Spildevand A/S"}]
[]
[]
[null,"Fane 7. Planlagte investeringer "]
[]
[null,"Tillæg for planlagte investeringer i 2014 og 2015"]
[null,"Beskrivelse af investeringen   ","Årstal ","Std. levetid (år)   ","Anskaffelses-pris (kr.)   ","Afskrivning"]
[null,"Arbejdsplads",2014,5,1400000,{"$f":"E8/D8","v":280000},"kr."]
[null,"Mindre renseanlæg < 5.000 PE uden mulighed for opdeling",2014,40,200000,{"$f":"E9/D9","v":5000},"kr."]
[null,"Pumpestationer i brønde (< 6,25 m2), Konstruktioner",2014,50,2258000,45160,"kr."]
[null,"Pumpestationer i brønde (< 6,25 m2), Mek/EL",2014,20,1129000,56450,"kr."]
[null,"Pumpestationer i brønde (< 6,25 m2), SRO",2014,10,2822500,282250,"kr."]
[null,"Strømpeforing = Ø 200 mm",2014,50,5080500,101610,"kr."]
[null,"Ø 200 mm < Ledningsnet = Ø 500 mm",2014,75,45160000,602133.33333333337,"kr."]
[null,"Jordbassin Klasse A",2014,50,2700000,54000,"kr."]
[null,"Køretøjer, små lastvogne (< 3.500 kg.)",2014,5,85000,17000,"kr."]
[null,"Strømpeforing = Ø 200 mm",2015,50,4135500,82710,"kr."]
[null,"Ledningsnet = Ø 200 mm",2015,75,36760000,490133.33333333331,"kr."]
[null,"Pumpestationer i brønde (< 6,25 m2), Mek/EL",2015,20,919000,45950,"kr."]
[null,"Pumpestationer i brønde (< 6,25 m2), Konstruktioner",2015,50,1838000,36760,"kr."]
[null,"Pumpestationer i brønde (< 6,25 m2), SRO",2015,10,2297500,229750,"kr."]
[null,"Jordbassin Klasse A",2015,50,500000,10000,"kr."]
[null,"Køretøjer, små lastvogne (< 3.500 kg.)",2015,5,380000,76000,"kr."]
[null,"Arbejdsplads",2015,5,1000000,200000,"kr."]
[null,"Mindre renseanlæg < 5.000 PE uden mulighed for opdeling",2015,40,200000,5000,"kr."]
[null,"Tillæg for 2014",null,null,null,{"$f":"SUMIF(C8:C25,\"2014\",F8:F25)","v":1443603.3333333335},"kr."]
[null,"Tillæg for 2015",null,null,null,{"$f":"SUMIF(C8:C25,\"2015\",F8:F25)","v":1176303.3333333333},"kr."]
[null,"Tillæg i alt",null,null,null,{"$f":"F26+F27","v":2619906.666666667},"kr."]

{"sheet":"8. 1-1 omkostninger","index":7,"n_rows":23,"n_cols":4,"rows_kept":23,"cut":false,"hidden":false,"merged":[[3,1,3,3],[13,1,13,3],[19,1,19,3]]}
[{"$f":"'7. Planlagte investeringer'!A1","v":"Assens Spildevand A/S"}]
[]
[]
[null,"Fane 8. 1:1 omkostninger"]
[]
[null,"Tillæg for budgetterede 1:1 omkostninger i 2015"]
[null,"Betaling til Forsyningssekretariatet",33000,"kr."]
[null,"Køb af varer og tjenesteydelser hos et andet prisloftreguleret vandselskab",21846000,"kr."]
[null,"Tillæg i alt ",{"$f":"SUM(C7:C8)","v":21879000},"kr."]
[]
[]
[]
[]
[null,"Tillæg for budgetterede nødvendige udgifter til revisorerklæringer samt ordinært medlemskab af DANVA og FVD i 2015"]
[null,"Betaling for ordinært medlemskab af DANVA/FVD",39200,"kr."]
[null,"Betaling for revisorerklæringer",27000,"kr."]
[null,"Tillæg i alt ",{"$f":"SUM(C15:C16)","v":66200},"kr."]
[]
[]
[null,"Korrektion af tillæg for faktiske 1:1 omkostninger (inkl. revisorerklæringer og ordinært medlemskab af DANVA/FVD) i 2013"]
[null,"Selskabets faktiske 1:1 omkostninger mv. i 2013, jf. reguleringsregnskabet",18367832,"kr."]
[null,"Tillæg for budgetterede 1:1 omkostninger mv. i prisloft 2013",21580500,"kr."]
[null,"Korrektion af tillæg for budgetterede 1:1 omkostninger mv. i 2013",{"$f":"C21-C22","v":-3212668},"kr."]

{"sheet":"9. Miljø- og servicemål","index":8,"n_rows":18,"n_cols":4,"rows_kept":18,"cut":false,"hidden":false,"merged":[[3,1,3,3]]}
[{"$f":"'8. 1-1 omkostninger'!A1","v":"Assens Spildevand A/S"}]
[]
[]
[null,"Fane 9. Driftsomkostninger til miljø- og servicemål "]
[]
[null,"Tillæg for budgetterede driftsomkostninger til miljø- og servicemål i 2015"]
[null,"Registrering af ledningsnet",3000000,"kr."]
[null,"Indsats mod svovlbrinte",187500,"kr."]
[null,"Rottebekæmpelse",80640,"kr."]
[null,"SMS-service",15000,"kr."]
[null,"Tillæg i alt",{"$f":"SUM(C7:C10)","v":3283140},"kr."]
[]
[]
[]
[null,"Korrektion af tillæg for faktiske driftsomkostninger til miljø- og servicemål i 2013"]
[null,"Selskabets faktiske driftsomkostninger til miljø- og servicemål i 2013, jf. reguleringsregnskabet",3368924,"kr."]
[null,"Tillæg for budgetterede driftsomkostninger til miljø- og servicemål i prisloft 2013",3000000,"kr."]
[null,"Korrektion af tillæg for budgetterede driftsomkostninger til miljø- og servicemål i 2013",{"$f":"C16-C17","v":368924},"kr."]

{"sheet":"10. Klimatilpasning","index":9,"n_rows":16,"n_cols":4,"rows_kept":16,"cut":false,"hidden":false,"merged":[[3,1,3,3],[12,1,12,3],[6,1,6,3]]}
[{"$f":"'9. Miljø- og servicemål'!A1","v":"Assens Spildevand A/S"}]
[]
[]
[null,"Fane 10. Medfinansiering af klimatilpasningsprojekter"]
[]
[]
[null,"Tillæg for budgetterede omkostninger til medfinansiering af klimatilpasningsprojekter i 2015"]
[null,null,0,"kr."]
[null,"Tillæg i alt",{"$f":" SUM(C8:C8)","v":0},"kr."]
[]
[]
[]
[null,"Korrektion af tillæg for faktiske omkostninger til medfinansiering af klimatilpasningsprojekter i 2013"]
[null,"Selskabets faktiske driftsomkostninger til klimatilpasningsprojekter i 2013, jf. reguleringsregnskabet",0,"kr."]
[null,"Tillæg for budgetterede driftsomkostninger til klimatilpasningsprojekter i prisloft 2013",0,"kr."]
[null,"Korrektion af tillæg for budgetterede omkostninger til klimatilpasningsprojekter i 2013",{"$f":"C14-C15","v":0},"kr."]

{"sheet":"11. Nettofinansielle poster","index":10,"n_rows":16,"n_cols":4,"rows_kept":16,"cut":false,"hidden":false,"merged":[[3,1,3,3]]}
[{"$f":"'10. Klimatilpasning'!A1","v":"Assens Spildevand A/S"}]
[]
[]
[null,"Fane 11. Nettofinansielle poster"]
[]
[null,"Tillæg for budgetterede nettofinansielle poster i 2015"]
[null,"Budgetterede renteudgifter og gebyrer i 2015",1341000,"kr."]
[null,"Budgetterede renteindtægter i 2015",25000,"kr."]
[null,"Tillæg/fradrag i alt",{"$f":"C7-C8","v":1316000},"kr."]
[]
[]
[]
[null,"Korrektion af tillæg for faktiske nettofinansielle poster i 2013"]
[null,"Selskabets faktiske nettofinansielle poster i 2013, jf. reguleringsregnskabet",665982,"kr."]
[null,"Tillæg for budgetterede nettofinansielle poster i prisloft 2013",1000000,"kr."]
[null,"Korrektion af tillæg for budgetterede nettofinansielle poster i 2013",{"$f":"C14-C15","v":-334018},"kr."]

{"sheet":"12. Over- eller underdækning","index":11,"n_rows":11,"n_cols":4,"rows_kept":11,"cut":false,"hidden":true,"merged":[[3,1,3,3]]}
[{"$f":"'11. Nettofinansielle poster'!A1","v":"Assens Spildevand A/S"}]
[]
[]
[null,"Fane 12. Over- eller underdækning til og med 2010"]
[]
[null,"Tillæg/fradrag for over- eller underdækning til og med 2010"]
[null,"Opgjort over- eller underdækning per 31. december 2010",0,"kr."]
[null,"Heraf beløb indregnet i prislofterne for 2012 - 2014",0,"kr."]
[null,"Endnu ikke indregnet over- eller underdækning",{"$f":"C7-C8","v":0},"kr."]
[null,"Resterende indregningsperiode (fastsat i prisloftet for 2012)",0,"år"]
[null,"Tillæg/fradrag i alt",{"$f":"IF(C7=0,0,C9/C10)","v":0},"kr."]

{"sheet":"13. Kontrol med indtægtsrammen","index":12,"n_rows":38,"n_cols":12,"rows_kept":38,"cut":false,"hidden":false,"merged":[[3,1,3,5],[30,1,30,4],[5,1,5,5]]}
[{"$f":"'12. Over- eller underdækning'!A1","v":"Assens Spildevand A/S"}]
[]
[]
[null,"Fane 13. Korrektion for overholdelse af indtægtsrammen i prisloftet for 2013"]
[]
[null,"Samlet opgørelse vedrørende overholdelse af indtægtsrammen i prisloftet for 2013"]
[null,"Indtægtsramme i prisloftet for 2013",null,null,84847062.397,"kr."]
[null,"Ikke anvendt likviditet vedrørende investeringer i 2013"]
[null,"Tillæg for historiske investeringer ",42457857,"kr."]
[null,"Tillæg for gennemførte investeringer i 2011",1880902,"kr."]
[null,"Korrektion af tillæg for planlagte investeringer i 2011",1503726,"kr."]
[null,"Tillæg for planlagte investeringer i 2012 og 2013",1952510,"kr."]
[null,"Indtægter fra tilslutningsbidrag",5010318,"kr."]
[null,"Indtægter fra salg af anlægsaktiver",0,"kr."]
[null,"Erstatninger vedr. anlægsaktiver mv.",0,"kr."]
[null,"Ekstraordinær effektiviseringsgevinst anvendt til investeringer",0,"kr."]
[null,"Udgifter til investeringer",-52380904,"kr."]
[null,"Ikke anvendt likviditet vedr. investeringer i alt",{"$f":"SUM(C9:C17)","v":424409},"kr.",{"$f":"IF(C18<0,0,-C18)","v":-424409},"kr."]
[null,"Ekstraordinære effektiviseringsgevinster anvendt til takstnedsættelse"]
[null,"Ekstraordinær effektiviseringsgevinst anvendt til takstnedsættelse",0,"kr.",{"$f":"-C20","v":0},"kr."]
[null,"Korrektion af ikke opkrævet tillæg fra 2011 i prisloft 2013"]
[null,"Korrektion af ikke opkrævet tillæg fra 2011 i prisloft 2013",0,"kr.",{"$f":"-C22","v":0},"kr."]
[null,"Indtægter fra primære aktiviteter mv."]
[null,"Indtægter fra kubikmetertakster, faste takster, særbidrag, målergebyrer samt andre takster og gebyrer",72791279,"kr."]
[null,"Andre indtægter i prisloftåret, som selskabet har opnået i forbindelse med eller som følge af selskabets primære aktiviteter",{"$f":"139138+4837828","v":4976966},"kr."]
[null,"Indtægter fra primære aktiviteter mv. i alt",{"$f":"SUM(C24:C25)","v":77768245},"kr.",{"$f":"-C26","v":-77768245},"kr."]
[null,"Tillæg/fradrag i prisloftet for 2015 i alt",null,null,{"$f":"E7+E18+E20+E22+E26","v":6654408.3969999999},"kr."]
[]
[]
[]
[null,"Oversigt over ekstraordinære effektiviseringsgevinster"]
[]
[null,null,2012,null,2013,null,2014,null,2015,null,2016]
[null,"Indhentet ekstraordinær effektiviseringsgevinst",2230759,"kr.",2484624,"kr.",null,"kr.",null,"kr.",null,"kr."]
[null,"Gevinst anvendt til investeringer",2230759,"kr.",0,"kr.",null,"kr.",null,"kr.",null,"kr."]
[null,"Gevinst anvendt til takstnedsættelse",0,"kr.",0,"kr.",null,"kr.",null,"kr.",null,"kr."]
[null,"Korrektion for  effektiviseringsgevinst der ikke er anvendt inden 4 år",0,"kr.",0,"kr.",null,"kr.",null,"kr.",{"$f":"IF(C38>SUM(E35:I36),C38-SUM(E35:I36),0)*-1","v":0},"kr."]
[null,"Resterende gevinst",{"$f":"C34-C35-C36","v":0},"kr.",{"$f":"C38+E34-E35-E36","v":2484624},"kr.",{"$f":"E38+G34-G35-G36","v":2484624},"kr.",{"$f":"G38+I34-I35-I36","v":2484624},"kr.",{"$f":"I38+K34-K35-K36+K37","v":2484624},"kr."]